bitfinex/quotes_ETHUSD_20241122
["timestamp","ask_amount","ask_price","bid_price","bid_amount"]
[1732248583419,0.7849,3367.7,3366.5,0.2971]
[1732248583634,0.7849,3367.7,3366.6,0.02969486]
[1732248583966,0.7849,3367.7,3366.7,0.2971]
[1732248584189,0.7849,3367.7,3366.8,0.02969487]
[1732248585674,0.7849,3367.7,3366.9,0.2971]
[1732248585873,0.7849,3367.7,3367.0,0.02969487]
[1732248588177,0.7849,3367.7,3366.9,0.2971]
[1732248589969,0.7849,3367.7,3367.0,0.2971]
[1732248591050,0.7849,3367.7,3367.1,0.2971]
[1732248591864,0.81461047,3367.6,3367.1,0.2971]
[1732248592068,0.81461047,3367.6,3366.2,0.57646358]
[1732248592069,0.81461047,3367.6,3366.3,0.2971]
[1732248592456,0.82461047,3367.6,3366.3,0.2971]
[1732248592790,0.01,3367.4,3366.3,0.2971]
[1732248593087,0.7849,3367.1,3366.4,0.2971]
[1732248593406,0.7849,3367.0,3366.1,0.40095777]
[1732248593601,0.7849,3367.0,3366.2,0.3268031]
[1732248593747,0.7849,3367.0,3366.2,0.8041031]
[1732248593945,0.7849,3367.0,3366.4,0.2971]
[1732248594355,0.7849,3367.0,3366.4,0.69805777]
[1732248594964,0.25228447,3367.7,3366.4,0.69805777]
[1732248594965,0.7849,3367.4,3366.4,0.69805777]
[1732248595483,0.7849,3367.4,3366.2,0.4773]
[1732248595484,0.7849,3367.4,3366.6,0.2971]
[1732248595649,0.7849,3367.4,3366.7,0.02969592]
[1732248597457,0.7849,3367.4,3366.6,0.2971]
[1732248597458,0.7849,3367.4,3366.6,0.32679643]
[1732248598504,0.7849,3367.4,3366.6,0.2971]
[1732248598709,0.02971047,3367.3,3366.7,0.2971]
[1732248598871,0.7849,3367.3,3366.7,0.2971]
[1732248599785,0.7849,3367.3,3366.8,0.2971]
[1732248600708,0.7849,3367.3,3366.9,0.2971]
[1732248601666,0.7849,3367.3,3367.0,0.2971]
[1732248601864,0.7849,3367.1,3367.0,0.2971]
[1732248603710,1.3449,3367.1,3367.0,0.2971]
[1732248603905,0.7849,3366.8,3365.7,0.2971]
[1732248604106,0.01,3366.9,3365.7,0.2971]
[1732248604107,0.81461047,3366.7,3365.7,0.2971]
[1732248604306,0.82461047,3366.7,3365.7,0.2971]
[1732248604992,0.82461047,3366.7,3365.1,0.32680935]
[1732248605501,0.82461047,3366.7,3365.3,0.2971]
[1732248606093,0.7849,3366.4,3365.3,0.2971]
[1732248606330,0.81461047,3366.4,3365.3,0.2971]
[1732248606826,0.7849,3366.4,3365.4,0.2971]
[1732248606983,0.7849,3366.4,3365.4,0.6895911]
[1732248607426,0.7849,3366.4,3365.4,1.12182702]
[1732248607586,0.7849,3366.4,3365.5,0.02971162]
[1732248608108,0.7849,3366.4,3365.4,0.6895911]
[1732248609119,0.7849,3366.4,3365.5,0.2971]
[1732248610028,0.7849,3366.2,3365.5,0.2971]
[1732248610329,0.7849,3366.2,3365.6,0.2971]
[1732248610501,0.78432644,3366.2,3365.6,0.2971]
[1732248611023,0.78432644,3366.2,3365.0,1.30202702]
[1732248611024,0.01,3367.2,3365.8,0.2971]
[1732248611185,0.03971047,3367.4,3365.9,0.02970516]
[1732248611385,0.03971047,3367.4,3366.0,0.2971]
[1732248611592,0.01,3367.2,3366.0,0.2971]
[1732248612112,0.04971047,3367.4,3366.0,0.2971]
[1732248612300,0.01,3367.2,3366.1,0.2971]
[1732248612497,0.01,3367.4,3366.1,0.2971]
[1732248612698,0.26987661,3367.4,3366.1,0.2971]
[1732248612903,0.04971047,3367.6,3366.2,0.02970573]
[1732248613098,0.01,3367.4,3366.2,0.02970573]
[1732248613366,0.01,3367.4,3365.7,0.4779]
[1732248613367,0.02,3367.4,3365.8,0.32680399]
[1732248613648,0.796,3367.3,3366.2,0.2971]
[1732248614348,0.796,3367.3,3366.3,0.2971]
[1732248614868,0.796,3367.3,3366.4,0.02969913]
[1732248617455,0.796,3367.3,3366.6,0.2971]
[1732248618365,0.796,3367.3,3366.4,0.3267967]
[1732248619734,0.796,3367.3,3366.4,0.75903262]
[1732248619910,0.796,3367.3,3366.4,0.3267967]
[1732248620023,0.796,3367.3,3366.5,0.2971]
[1732248621087,0.796,3367.3,3366.6,0.32679924]
[1732248621639,0.796,3367.3,3366.6,0.80469924]
[1732248621843,0.796,3367.3,3366.6,1.23693516]
[1732248622170,0.796,3367.6,3366.8,0.2971]
[1732248622374,0.796,3367.6,3366.9,0.02969537]
[1732248624049,0.796,3367.6,3366.8,0.32679438]
[1732248624369,0.796,3367.6,3366.8,0.50266073]
[1732248625336,0.796,3367.6,3366.8,0.02969438]
[1732248625743,0.796,3367.6,3366.9,0.02969444]
[1732248625969,0.79557386,3367.6,3366.9,0.02969444]
[1732248626681,9.22192757,3369.9,3366.9,0.02969444]
[1732248626682,0.03971047,3369.8,3367.3,1.3254]
[1732248626844,0.03971047,3369.8,3367.7,0.2971]
[1732248627041,0.01,3370.0,3368.0,0.55]
[1732248627042,0.02971047,3369.9,3368.0,0.55]
[1732248627248,0.02971047,3369.9,3367.8,1.44682994]
[1732248627249,0.02971047,3369.9,3368.1,0.32678083]
[1732248627837,0.01,3369.7,3368.1,0.32678083]
[1732248628046,0.25712278,3370.1,3368.3,0.7754]
[1732248628345,0.1503011,3370.2,3368.5,0.2971]
[1732248628559,0.01,3370.0,3368.7,0.2971]
[1732248628753,0.01,3370.1,3368.8,0.02967777]
[1732248629080,0.7508,3370.0,3368.8,0.02967777]
[1732248629391,0.79051047,3370.0,3368.6,0.19489555]
[1732248629544,0.02971047,3369.9,3368.6,0.02967792]
[1732248629750,0.7508,3369.8,3368.4,0.02967889]
[1732248629955,0.02971047,3369.7,3368.4,0.02967889]
[1732248630255,0.7508,3369.7,3368.3,3.80508042]
[1732248630463,0.7608,3369.7,3368.3,3.80508042]
[1732248630785,0.7608,3369.7,3368.3,0.80508042]
[1732248631080,0.7508,3369.5,3368.3,0.80508042]
[1732248631276,0.7508,3369.5,3368.3,0.7754]
[1732248632056,0.7508,3369.5,3368.4,0.02968254]
[1732248633153,0.7508,3369.5,3368.3,0.3267813]
[1732248633154,0.02971047,3369.4,3368.3,0.3267813]
[1732248633389,0.02971047,3369.4,3368.3,0.2971]
[1732248633986,0.7608,3369.3,3368.0,0.4783]
[1732248634365,0.7508,3369.0,3367.7,0.80508624]
[1732248634646,0.7508,3369.0,3367.8,0.38884912]
[1732248634881,0.7508,3369.0,3367.9,0.02968781]
[1732248635242,0.7508,3369.0,3368.0,0.38884912]
[1732248635437,0.7508,3369.0,3368.2,0.4783]
[1732248635642,0.7508,3369.7,3368.3,0.41853136]
[1732248636351,0.7508,3369.7,3368.3,0.57617309]
[1732248637795,0.7608,3369.7,3368.3,0.57617309]
[1732248639050,0.7612,3369.4,3368.2,0.4783]
[1732248639262,0.01,3369.3,3368.3,0.2971]
[1732248639454,0.01,3369.1,3368.3,0.2971]
[1732248639712,0.7612,3369.0,3368.3,0.2971]
[1732248639988,0.7612,3369.0,3367.3,0.4783]
[1732248639989,0.01,3368.9,3367.3,0.4783]
[1732248640195,0.79091047,3368.8,3367.4,0.32679058]
[1732248640552,0.79091047,3368.8,3367.4,0.7156397]
[1732248640747,0.80091047,3368.8,3367.6,0.2971]
[1732248641485,0.7612,3368.5,3367.6,0.2971]
[1732248641657,0.02,3368.6,3367.7,0.2971]
[1732248641658,0.7612,3368.3,3367.7,0.2971]
[1732248641839,0.8403,3368.1,3367.4,0.2971]
[1732248642152,0.8403,3368.0,3367.4,0.2971]
[1732248642359,0.25510861,3368.8,3367.4,0.2971]
[1732248642360,0.01,3367.8,3367.4,0.2971]
[1732248642571,0.01,3367.8,3366.4,0.38884912]
[1732248642572,0.01,3367.6,3366.4,0.38884912]
[1732248642881,0.8303,3367.5,3366.5,0.02970183]
[1732248643167,0.8303,3367.5,3366.6,0.68594912]
[1732248643566,0.8303,3367.5,3366.7,0.02969971]
[1732248644562,0.8303,3367.5,3366.5,0.02969969]
[1732248644864,0.8303,3367.5,3366.4,0.2971]
[1732248646434,0.9923247,3367.5,3366.4,0.2971]
[1732248649135,0.9923247,3367.5,3366.3,0.4783]
[1732248649338,0.9923247,3367.5,3366.4,0.02970139]
[1732248649672,0.9923247,3367.5,3366.3,0.4783]
[1732248650832,0.9923247,3367.5,3366.2,0.55]
[1732248651028,0.8303,3367.5,3366.3,0.02970139]
[1732248651230,0.8303,3367.5,3366.4,0.55]
[1732248651433,0.8303,3367.5,3366.4,0.57969683]
[1732248651969,0.02971047,3367.4,3366.3,0.4783]
[1732248652171,0.8403,3367.3,3366.1,0.2961]
[1732248652327,0.8403,3367.3,3366.2,0.02970358]
[1732248653070,0.8303,3367.3,3366.0,0.32580358]
[1732248653373,0.8303,3367.3,3366.2,0.34409912]
[1732248653572,0.8303,3367.3,3366.3,0.02969901]
[1732248653732,0.8303,3367.3,3366.3,0.41727891]
[1732248653928,0.8303,3367.3,3366.1,0.2961]
[1732248654367,0.8303,3367.3,3366.2,0.02970235]
[1732248655170,0.8303,3367.3,3366.1,0.87580234]
[1732248655761,0.8303,3367.3,3366.2,0.43541023]
[1732248655969,0.8303,3367.3,3366.3,0.02970234]
[1732248656399,0.8303,3367.3,3366.2,0.02969965]
[1732248656599,0.8303,3367.3,3366.1,0.87580138]
[1732248656965,0.8303,3367.3,3366.2,0.43541014]
[1732248657809,0.8303,3367.3,3366.1,0.87580138]
[1732248658268,0.02971047,3367.2,3366.1,0.87580138]
[1732248658791,0.8303,3367.3,3366.1,0.87580138]
[1732248660712,0.8503,3367.3,3366.2,0.2961]
[1732248661508,0.7613,3366.9,3366.2,0.2961]
[1732248661810,0.7613,3366.7,3365.6,0.2961]
[1732248661970,0.7613,3366.7,3365.7,0.02970603]
[1732248662296,0.7613,3366.7,3365.6,0.2961]
[1732248662603,0.7613,3366.7,3365.7,0.2961]
[1732248662791,0.79101047,3366.6,3365.7,0.2961]
[1732248662996,0.7613,3367.3,3365.9,0.2961]
[1732248663196,0.7613,3367.3,3366.0,0.02970274]
[1732248663371,0.7613,3367.3,3366.1,0.2961]
[1732248663566,0.7613,3367.3,3366.2,0.02970175]
[1732248663774,0.7613,3367.3,3366.1,0.2961]
[1732248663775,0.7613,3367.3,3366.1,0.32580185]
[1732248664010,0.02971047,3367.2,3366.1,0.2961]
[1732248664209,0.7613,3367.1,3366.3,0.2961]
[1732248664411,0.7613,3366.9,3366.3,0.2961]
[1732248664612,0.01,3366.8,3366.3,0.2961]
[1732248664819,0.7613,3366.7,3366.3,0.2961]
[1732248665321,0.01,3366.6,3365.7,0.2961]
[1732248665513,0.7613,3366.5,3365.7,0.2961]
[1732248666183,0.7613,3366.5,3365.3,0.32580877]
[1732248666585,0.7613,3366.5,3365.5,0.2961]
[1732248666907,0.7613,3366.5,3365.6,0.02970876]
[1732248667927,0.7613,3366.5,3365.4,0.02970701]
[1732248668088,0.7613,3366.5,3365.6,0.2961]
[1732248668283,0.7613,3366.5,3365.6,0.32580701]
[1732248669229,0.7613,3366.5,3365.2,0.4783]
[1732248669230,0.7613,3366.5,3365.7,0.02970702]
[1732248669417,0.7613,3366.5,3365.8,0.2961]
[1732248670386,0.7613,3366.5,3365.9,0.2961]
[1732248670538,0.79101047,3366.4,3365.9,0.2961]
[1732248670946,0.7613,3366.4,3365.9,0.2961]
[1732248671371,0.7613,3366.4,3365.3,0.2961]
[1732248671680,0.7613,3366.4,3365.5,0.2961]
[1732248671985,0.7613,3366.4,3365.7,0.2961]
[1732248672284,0.7613,3366.4,3365.3,0.02970871]
[1732248672285,0.7613,3366.4,3365.9,0.2961]
[1732248673338,0.02971047,3366.3,3365.5,0.2961]
[1732248673557,0.7613,3366.4,3365.7,0.2961]
[1732248673970,0.7713,3366.4,3365.7,0.2961]
[1732248674395,0.7613,3366.4,3365.7,0.2961]
[1732248674544,0.7613,3366.4,3365.4,0.02970986]
[1732248674740,0.7713,3366.4,3365.6,0.2961]
[1732248675053,0.7613,3366.4,3365.8,0.2961]
[1732248675265,0.7713,3366.4,3365.8,0.2961]
[1732248675576,0.7613,3366.4,3365.8,0.2961]
[1732248676099,0.7613,3366.4,3365.3,0.3531348]
[1732248676100,0.7613,3366.4,3365.5,0.02970986]
[1732248676282,0.7613,3366.4,3365.7,0.2961]
[1732248676507,0.7613,3366.4,3365.8,0.0297074]
[1732248676648,0.7613,3366.4,3365.9,0.2961]
[1732248677708,0.7613,3366.4,3365.5,0.2961]
[1732248677893,0.7613,3366.4,3365.7,0.2961]
[1732248678204,0.02971047,3366.3,3365.9,0.2961]
[1732248678407,0.8118,3366.3,3365.9,0.2961]
[1732248679108,0.8118,3366.3,3365.2,0.2961]
[1732248679307,0.8118,3366.3,3365.0,0.35392813]
[1732248679308,0.8118,3366.3,3365.4,0.2961]
[1732248680204,0.8118,3365.8,3365.4,0.2961]
[1732248680404,0.8118,3365.6,3365.5,0.2961]
[1732248681483,0.01,3365.2,3364.4,0.2961]
[1732248681677,0.8018,3365.1,3364.4,0.2961]
[1732248682214,0.8018,3365.1,3364.6,0.2961]
[1732248682413,0.8018,3365.1,3364.6,0.66269912]
[1732248683020,0.8018,3365.1,3364.8,0.2961]
[1732248683887,0.25870614,3365.9,3364.9,0.32581668]
[1732248683888,0.8018,3365.7,3364.9,0.32581668]
[1732248684199,0.8018,3365.7,3364.9,0.2961]
[1732248684401,0.8018,3365.7,3365.0,0.02971435]
[1732248684606,0.8018,3365.7,3364.9,0.2961]
[1732248685039,0.8018,3365.7,3364.7,0.02971436]
[1732248685040,0.8018,3365.7,3365.0,0.2961]
[1732248686057,0.8018,3365.7,3365.1,0.2961]
[1732248686945,0.01,3365.6,3365.2,0.2961]
[1732248687256,0.8018,3365.3,3365.2,0.2961]
[1732248689048,0.8018,3365.3,3364.5,0.2961]
[1732248689453,0.8018,3365.3,3364.7,0.2961]
[1732248690454,0.8018,3365.3,3364.8,0.2961]
[1732248691052,0.01,3365.1,3364.8,0.2961]
[1732248691550,0.8018,3365.3,3364.2,0.2961]
[1732248691755,0.01,3365.1,3364.4,0.2961]
[1732248692549,0.8304,3365.0,3364.4,0.2961]
[1732248692714,0.8304,3365.0,3364.1,0.32582064]
[1732248692918,0.8304,3365.0,3364.3,0.2961]
[1732248693215,0.8304,3365.0,3364.4,0.02972204]
[1732248694060,0.8304,3365.0,3364.3,0.66269912]
[1732248695548,0.8304,3365.0,3364.1,0.2961]
[1732248695861,0.8304,3365.0,3364.3,0.2961]
[1732248696748,0.8304,3365.0,3364.4,0.2961]
[1732248697637,0.8304,3365.0,3364.5,0.2961]
[1732248697838,0.02971047,3364.9,3364.5,0.2961]
[1732248698239,0.8304,3365.0,3364.5,0.2961]
[1732248698592,0.8304,3365.0,3364.7,0.2961]
[1732248698739,0.01,3365.6,3364.7,0.2961]
[1732248698740,0.8304,3365.3,3364.7,0.66269912]
[1732248700177,0.8284,3365.3,3364.7,0.66269912]
[1732248700359,0.8284,3365.3,3364.8,0.2961]
[1732248701289,0.8284,3365.3,3364.4,0.2961]
[1732248704479,0.8284,3365.3,3364.4,0.66269912]
[1732248704792,0.8284,3365.3,3364.6,0.2961]
[1732248705155,0.8284,3365.3,3364.7,0.02971611]
[1732248706040,0.8284,3365.3,3364.6,0.66269912]
[1732248707185,0.7861,3365.6,3364.8,0.7764]
[1732248707428,0.7861,3365.6,3365.0,0.2961]
[1732248707569,0.7861,3365.6,3365.1,0.02971133]
[1732248707773,0.7861,3366.1,3365.1,0.02971133]
[1732248709480,0.7861,3366.1,3365.0,0.32581107]
[1732248709789,0.7861,3366.1,3365.0,0.54851173]
[1732248710087,0.7861,3365.9,3365.0,0.54851173]
[1732248710388,0.7861,3365.9,3365.0,0.51880066]
[1732248710592,0.7861,3365.9,3365.0,0.54851217]
[1732248710883,0.7861,3365.9,3365.0,0.51880066]
[1732248711055,0.7861,3365.9,3365.2,0.2961]
[1732248712552,0.7961,3365.7,3365.1,0.2961]
[1732248712894,0.7961,3365.4,3365.1,0.2961]
[1732248713064,0.01,3365.0,3364.3,0.2961]
[1732248713448,0.01,3365.0,3364.0,0.2961]
[1732248713675,0.01,3365.0,3364.0,0.66269912]
[1732248714253,0.7861,3364.9,3364.1,0.02972171]
[1732248714794,0.7861,3364.9,3364.2,0.2961]
[1732248716285,0.7861,3364.9,3364.2,0.71039991]
[1732248716607,0.7861,3364.9,3364.2,0.2961]
[1732248716886,0.7639,3364.6,3364.3,0.2961]
[1732248717555,0.7639,3364.6,3364.5,0.2961]
[1732248718398,0.7639,3364.6,3364.1,0.2961]
[1732248719392,0.7639,3364.6,3364.1,0.32582168]
[1732248719688,0.7639,3364.6,3364.1,0.2961]
[1732248719923,0.7639,3364.6,3364.2,0.02972168]
[1732248720249,0.7639,3364.6,3364.2,0.2961]
[1732248721355,0.7639,3364.6,3363.7,0.32582168]
[1732248721666,0.7639,3364.6,3363.9,0.2961]
[1732248722258,0.7639,3364.4,3363.9,0.2961]
[1732248722456,0.7639,3364.4,3363.7,0.2961]
[1732248723171,0.7639,3364.4,3363.9,0.2961]
[1732248724154,0.7639,3364.4,3364.0,0.2961]
[1732248724155,0.7739,3364.1,3364.0,0.2961]
[1732248724395,0.7739,3364.1,3361.4,0.02972582]
[1732248724396,0.7739,3364.1,3362.9,0.2961]
[1732248724573,0.7639,3363.9,3362.9,0.32582917]
[1732248724920,0.7739,3363.9,3362.9,0.66269912]
[1732248725108,0.01,3363.7,3362.9,0.66269912]
[1732248725402,0.7639,3363.6,3362.8,0.2961]
[1732248725999,0.7639,3363.6,3362.9,0.02973279]
[1732248726359,0.7639,3363.6,3363.1,0.2961]
[1732248726583,0.02,3364.1,3363.3,0.2961]
[1732248726584,0.7639,3364.0,3363.3,0.2961]
[1732248726796,0.01,3363.9,3363.3,0.2961]
[1732248727104,0.7739,3364.0,3363.3,0.2961]
[1732248727390,0.7639,3364.0,3363.3,0.2961]
[1732248727592,0.7639,3364.0,3363.1,0.2961]
[1732248727891,0.01,3363.9,3363.2,0.02973029]
[1732248728097,0.01,3363.9,3363.2,0.02973058]
[1732248728250,0.01,3363.9,3363.1,0.2961]
[1732248728251,0.8263,3363.9,3363.1,0.2961]
[1732248728465,0.8163,3363.9,3363.4,0.2961]
[1732248729471,0.8163,3363.9,3363.0,0.32582718]
[1732248729669,0.8163,3363.9,3363.2,0.2961]
[1732248730050,0.03971047,3365.8,3363.2,0.2961]
[1732248730051,0.8163,3364.2,3363.4,0.2961]
[1732248730325,0.8163,3364.2,3363.4,0.32582556]
[1732248731402,0.8163,3364.2,3363.4,0.02972556]
[1732248732788,0.8163,3364.2,3363.5,0.2961]
[1732248733103,0.8163,3364.2,3363.6,0.02972553]
[1732248733740,0.8163,3364.2,3363.6,0.32582553]
[1732248734237,0.8163,3364.2,3363.6,0.2961]
[1732248734628,0.8163,3364.2,3363.4,0.2961]
[1732248735335,0.8004,3364.0,3363.4,0.2961]
[1732248735703,0.8004,3364.0,3363.0,0.2961]
[1732248735903,0.8004,3364.0,3363.2,0.2961]
[1732248736351,0.8004,3364.0,3363.2,0.32583005]
[1732248736656,0.01,3363.9,3363.2,0.2961]
[1732248736802,0.01,3363.9,3363.0,0.32583056]
[1732248737602,0.01,3363.9,3363.2,0.2961]
[1732248738341,0.8004,3363.8,3363.2,0.2961]
[1732248738710,0.8004,3363.8,3362.8,0.02973056]
[1732248738711,0.8004,3363.8,3362.8,0.32583056]
[1732248739118,0.8004,3363.8,3362.8,0.69242968]
[1732248739534,0.8004,3363.8,3363.0,0.2961]
[1732248739849,0.8004,3363.8,3363.0,0.71337297]
[1732248740210,0.8004,3363.8,3363.0,0.2961]
[1732248741007,0.8004,3363.8,3362.9,0.2961]
[1732248742752,0.8004,3363.6,3363.0,0.2961]
[1732248743854,0.8004,3363.6,3362.8,0.2961]
[1732248744326,0.8004,3363.6,3363.0,0.2961]
[1732248745351,0.01,3363.7,3363.1,0.2961]
[1732248745352,0.8004,3363.4,3363.1,0.2961]
[1732248746461,0.8004,3363.4,3362.8,0.32583274]
[1732248746619,0.8004,3363.4,3363.0,0.2961]
[1732248746816,0.8004,3363.4,3363.2,0.2961]
[1732248747726,0.8004,3363.4,3362.4,0.2961]
[1732248747912,0.8004,3363.4,3363.3,0.2961]
[1732248748337,0.26184347,3364.3,3361.9,0.36659912]
[1732248748338,0.8137,3362.9,3362.1,0.36173592]
[1732248748649,0.01,3362.8,3362.2,0.2961]
[1732248748841,0.01,3362.8,3361.7,0.32584033]
[1732248749432,0.01,3362.8,3361.7,0.66910612]
[1732248749831,0.01,3362.8,3361.7,0.32584033]
[1732248750032,0.01,3362.8,3361.9,0.2961]
[1732248750250,0.01,3362.8,3361.8,0.34326579]
[1732248750251,0.8137,3362.7,3362.1,0.2961]
[1732248750455,0.01,3362.5,3362.1,0.2961]
[1732248750663,0.8137,3362.4,3362.1,0.2961]
[1732248751251,0.8137,3362.4,3361.8,0.2961]
[1732248752863,0.8137,3362.2,3361.9,0.2961]
[1732248753625,0.8137,3362.2,3361.1,0.32584489]
[1732248754126,0.8137,3362.2,3361.3,0.2961]
[1732248754436,0.8137,3362.2,3361.5,0.2961]
[1732248755241,0.8137,3362.2,3361.2,0.5797449]
[1732248755242,0.8137,3362.2,3361.6,0.2961]
[1732248755426,0.8137,3362.8,3362.0,0.2961]
[1732248755847,0.8137,3362.8,3362.1,0.8461]
[1732248756924,0.8137,3362.8,3362.2,0.02973952]
[1732248757156,0.8137,3362.8,3362.4,0.2961]
[1732248757667,0.8137,3362.8,3362.4,0.32583753]
[1732248757866,0.8137,3362.8,3362.4,0.32583752]
[1732248758173,0.01,3363.1,3362.4,0.32583752]
[1732248758174,0.8137,3363.1,3362.5,0.8461]
[1732248758336,0.8137,3363.1,3362.6,0.0297346]
[1732248758541,0.8137,3363.1,3362.5,0.8461]
[1732248759952,0.8137,3363.1,3362.6,0.02973464]
[1732248760156,0.8137,3363.1,3362.5,0.8461]
[1732248760674,0.8137,3363.1,3362.6,0.02973465]
[1732248760833,0.8137,3363.1,3362.5,0.8461]
[1732248761173,0.8137,3363.1,3362.6,0.02973467]
[1732248762275,0.828,3363.5,3362.7,0.8461]
[1732248762472,0.818,3363.5,3362.7,0.8461]
[1732248762771,0.818,3363.5,3362.8,0.02973276]
[1732248763073,0.818,3363.5,3362.7,1.04565005]
[1732248763569,0.818,3363.5,3362.9,0.2961]
[1732248764469,0.818,3363.5,3363.2,0.2961]
[1732248765693,0.818,3363.5,3363.3,0.2961]
[1732248766702,0.818,3363.5,3363.4,0.2961]
[1732248767400,0.818,3364.1,3363.4,0.2961]
[1732248767703,0.818,3364.1,3363.3,0.32582574]
[1732248767860,0.818,3364.1,3363.5,0.2961]
[1732248768055,0.818,3364.1,3363.6,0.02972602]
[1732248768759,0.818,3364.1,3363.5,0.32582466]
[1732248768959,0.818,3364.1,3363.5,0.02972466]
[1732248770395,0.818,3364.1,3363.4,0.02972478]
[1732248770693,0.818,3364.1,3363.3,0.02972484]
[1732248770862,0.818,3364.1,3363.1,0.02972681]
[1732248771063,0.818,3364.1,3363.2,0.2961]
[1732248771878,0.818,3364.1,3363.3,0.0297278]
[1732248772075,0.25945226,3364.9,3363.7,0.2961]
[1732248772372,0.01,3366.5,3364.8,0.7764]
[1732248772373,0.818,3365.9,3364.8,0.7764]
[1732248772600,0.818,3365.9,3365.1,0.2961]
[1732248772768,0.818,3365.9,3365.3,0.2961]
[1732248773862,0.818,3365.9,3365.4,0.2961]
[1732248774072,0.828,3365.9,3364.9,0.32581063]
[1732248774895,0.01,3365.7,3364.6,0.02971196]
[1732248775207,0.02,3365.7,3364.5,1.10221408]
[1732248775389,0.01,3365.5,3364.5,1.10221408]
[1732248775593,0.01,3365.5,3364.6,0.46712034]
[1732248775768,0.01,3365.5,3364.7,0.02971496]
[1732248776106,0.01,3365.5,3364.8,0.46712034]
[1732248776290,0.838,3365.9,3364.8,0.46712034]
[1732248776469,0.01,3365.5,3364.8,0.46712034]
[1732248779105,0.01,3365.5,3364.9,0.02971496]
[1732248779804,0.01,3365.5,3364.9,0.4968353]
[1732248779985,0.01,3365.5,3364.9,0.46712034]
[1732248780785,0.7722,3365.4,3364.9,0.46712034]
[1732248781085,0.7722,3365.4,3364.6,0.46712034]
[1732248781991,0.7722,3365.4,3364.6,0.63953741]
[1732248782172,0.7722,3365.4,3364.7,0.02971648]
[1732248782373,0.01,3365.5,3364.8,0.45653681]
[1732248782602,0.01,3365.5,3364.9,0.02971518]
[1732248782785,0.01,3365.5,3364.8,0.48625206]
[1732248782991,0.01,3365.5,3364.9,0.45653681]
[1732248784187,0.01,3365.5,3365.0,0.2961]
[1732248785098,0.01,3365.5,3364.6,0.32581525]
[1732248785708,0.01,3365.3,3364.6,0.32581525]
[1732248785873,0.01,3365.1,3364.6,0.2961]
[1732248786218,0.01,3365.1,3364.3,0.2961]
[1732248787578,0.02,3365.1,3364.3,0.2961]
[1732248788086,0.02,3364.9,3364.3,0.2961]
[1732248788292,0.02,3364.9,3364.4,0.2961]
[1732248788685,0.7722,3364.8,3364.4,0.2961]
[1732248789015,0.03971047,3364.7,3364.4,0.2961]
[1732248789220,0.04971047,3364.7,3364.4,0.2961]
[1732248789515,0.04971047,3364.7,3363.8,0.40620636]
[1732248789516,0.01,3364.5,3363.9,0.2961]
[1732248789719,0.7722,3364.4,3363.9,0.2961]
[1732248790100,0.01,3364.1,3363.9,0.2961]
[1732248790243,0.03971047,3364.1,3363.4,0.2961]
[1732248790457,0.01,3364.0,3363.2,0.2961]
[1732248790619,0.7822,3363.9,3363.2,0.2961]
[1732248791217,0.8383,3363.3,3363.2,0.2961]
[1732248791434,0.8383,3363.3,3362.0,0.2961]
[1732248791435,0.01,3363.2,3362.0,0.2961]
[1732248791613,0.01,3363.2,3362.1,0.0297371]
[1732248792159,0.01,3363.0,3362.2,0.2961]
[1732248792359,0.01,3362.8,3362.2,0.2961]
[1732248792808,0.8283,3362.7,3362.2,0.2961]
[1732248793246,0.01,3362.6,3361.8,0.2961]
[1732248793446,0.8283,3362.7,3361.8,0.70079469]
[1732248793652,0.01,3362.8,3362.0,0.2961]
[1732248793958,0.02,3363.5,3362.3,0.2961]
[1732248794252,0.02,3363.5,3362.5,0.2961]
[1732248794452,0.02,3363.5,3362.6,0.02973334]
[1732248795826,0.02,3363.5,3362.5,0.32583336]
[1732248796027,0.02,3363.5,3362.5,0.51154442]
[1732248796860,3.55,3365.8,3362.9,0.01]
[1732248797163,3.52112,3365.8,3362.9,0.03973227]
[1732248797327,0.55,3365.6,3362.9,0.03973227]
[1732248797814,0.355,3365.7,3363.5,0.01]
[1732248798013,2.97054,3366.4,3363.6,0.8185]
[1732248798323,8.32026,3366.7,3363.8,0.01]
[1732248798810,8.32026,3366.7,3363.8,0.03972505]
[1732248799010,5.35,3366.7,3363.7,0.01]
[1732248799255,2.97072,3366.2,3363.7,0.01]
[1732248799454,0.35347039,3366.1,3363.7,0.01]
[1732248799614,0.55,3366.0,3363.7,0.01]
[1732248799813,0.55,3365.8,3363.7,0.01]
[1732248800062,0.8283,3365.9,3363.7,0.01]
[1732248800250,0.55,3366.0,3363.8,0.01]
[1732248800251,0.8283,3365.7,3363.8,0.01]
[1732248800418,0.8283,3365.5,3363.8,0.01]
[1732248800947,0.55,3365.8,3363.8,0.01]
[1732248801148,0.8283,3365.5,3363.8,0.03972521]
[1732248801369,0.8283,3365.3,3363.8,0.03972521]
[1732248801577,0.55,3365.2,3363.8,0.03972521]
[1732248803036,0.55,3365.2,3363.8,0.01]
[1732248803437,0.8283,3365.3,3363.9,0.8185]
[1732248803655,0.8283,3365.3,3363.9,0.84822412]
[1732248803943,0.8283,3365.3,3363.9,0.8185]
[1732248804166,0.8283,3365.3,3364.0,0.2961]
[1732248806082,1.09003639,3365.3,3364.0,0.2961]
[1732248807275,1.09003639,3365.3,3364.1,0.2961]
[1732248812195,0.55,3365.2,3364.1,0.2961]
[1732248812343,0.91630364,3365.1,3364.1,0.2961]
[1732248812687,0.55,3365.0,3364.1,0.2961]
[1732248812872,0.55,3364.8,3363.7,0.8028]